bitfinex/quotes_SOLUSD_20240603
["timestamp","ask_amount","ask_price","bid_price","bid_amount"]
[1717393095423,2.2428,164.97,164.95,49.96]
[1717393095722,2.2428,164.97,164.95,63.0513]
[1717393095926,2.2429,164.96,164.95,63.0513]
[1717393097030,2.2428,164.97,164.95,63.0513]
[1717393097228,2.2429,164.96,164.95,63.0513]
[1717393097842,2.2428,164.97,164.95,63.0513]
[1717393100132,2.2429,164.96,164.94,4.96]
[1717393100423,9.4448,165.0,164.93,4.96]
[1717393100424,2.2431,164.95,164.93,4.96]
[1717393100729,2.2432,164.94,164.92,44.4449]
[1717393100906,2.2432,164.94,164.92,12.929]
[1717393101112,2.2432,164.94,164.93,4.96]
[1717393101436,2.2431,164.95,164.93,4.96]
[1717393101608,2.2432,164.94,164.92,12.929]
[1717393101928,2.2432,164.94,164.92,17.889]
[1717393102132,2.2431,164.95,164.92,17.889]
[1717393102939,2.2431,164.95,164.93,4.96]
[1717393104948,2.2431,164.95,164.92,12.929]
[1717393105153,2.2431,164.95,164.93,4.96]
[1717393105439,6.7288,164.97,164.88,30.6611]
[1717393105642,2.2434,164.93,164.9,17.5192]
[1717393105828,4.4862,164.95,164.9,17.5192]
[1717393106227,2.2435,164.92,164.9,17.5192]
[1717393106855,11.2145,164.97,164.9,17.5192]
[1717393107148,2.2433,164.94,164.9,17.5192]
[1717393107337,2.2433,164.94,164.91,4.96]
[1717393107537,2.2433,164.94,164.91,17.1477]
[1717393108251,2.2433,164.94,164.92,13.0471]
[1717393108638,2.2431,164.95,164.92,13.0471]
[1717393108953,2.2431,164.95,164.93,13.0471]
[1717393109253,2.2431,164.95,164.92,35.3156]
[1717393109437,2.2431,164.95,164.94,13.0471]
[1717393109637,2.2431,164.95,164.94,18.0071]
[1717393110563,2.2431,164.95,164.9,34.4269]
[1717393110732,2.2431,164.95,164.91,77.1832]
[1717393111049,4.4857,164.97,164.88,35.3909]
[1717393111249,2.2432,164.95,164.9,2.2437]
[1717393111428,2.2432,164.94,164.91,18.267]
[1717393112057,4.4857,164.97,164.92,4.96]
[1717393112058,2.2431,164.95,164.92,4.96]
[1717393112236,2.2431,164.95,164.91,12.3158]
[1717393112552,2.2432,164.94,164.92,12.249]
[1717393113159,2.2431,164.95,164.92,12.249]
[1717393113453,4.4857,164.97,164.92,12.249]
[1717393113647,2.2432,164.94,164.92,12.249]
[1717393113833,2.2431,164.95,164.92,12.249]
[1717393114333,2.243,164.96,164.92,12.249]
[1717393114738,2.243,164.96,164.93,58.2993]
[1717393115359,2.2431,164.95,164.93,58.2993]
[1717393118155,2.2431,164.95,164.91,12.4456]
[1717393118361,2.2431,164.95,164.91,17.4056]
[1717393118565,2.243,164.96,164.93,12.4456]
[1717393118742,2.243,164.96,164.93,17.4056]
[1717393119980,2.243,164.96,164.93,12.4456]
[1717393121980,2.243,164.96,164.94,45.0]
[1717393123081,2.2431,164.95,164.94,45.0]
[1717393123873,2.2431,164.95,164.93,12.4456]
[1717393124257,2.2431,164.95,164.91,12.4502]
[1717393124578,2.2431,164.95,164.92,45.0]
[1717393124882,2.2431,164.95,164.92,57.4573]
[1717393125057,2.2431,164.95,164.92,12.4573]
[1717393126154,9.4451,164.99,164.92,12.4573]
[1717393126359,2.243,164.96,164.92,12.4573]
[1717393127861,2.2431,164.95,164.92,12.4573]
[1717393129758,2.2432,164.94,164.9,13.37611875]
[1717393129963,2.2432,164.94,164.9,17.8513]
[1717393130685,10.8218,165.0,164.85,22.13605318]
[1717393130877,2.2436,164.91,164.87,4.96]
[1717393131073,4.96,164.94,164.88,13.2013]
[1717393131257,2.2439,164.89,164.88,13.2013]
[1717393131695,2.2438,164.9,164.88,13.2013]
[1717393131858,2.244,164.88,164.87,4.96]
[1717393132059,4.96,164.9,164.81,22.17525318]
[1717393132362,2.2441,164.87,164.85,12.0777]
[1717393132752,2.244,164.88,164.85,12.0777]
[1717393132971,2.2439,164.89,164.85,12.0777]
[1717393133657,2.244,164.88,164.85,12.0777]
[1717393136286,2.244,164.88,164.84,12.1368]
[1717393136490,2.244,164.88,164.85,45.0]
[1717393136669,2.244,164.88,164.86,12.1368]
[1717393137281,2.2441,164.87,164.86,12.1368]
[1717393139991,2.2441,164.87,164.83,13.1305]
[1717393140195,2.2441,164.87,164.84,18.0905]
[1717393140386,2.2441,164.87,164.85,13.1305]
[1717393143394,2.2441,164.87,164.86,12.6551]
[1717393143780,1.7441,164.87,164.86,12.6551]
[1717393144097,2.2441,164.88,164.86,12.6551]
[1717393144310,2.2441,164.88,164.85,4.96]
[1717393144466,2.2442,164.87,164.85,4.96]
[1717393144770,2.2442,164.87,164.84,38.2808]
[1717393144970,2.2442,164.87,164.84,50.5741]
[1717393145395,2.2443,164.86,164.84,12.2933]
[1717393145606,2.2443,164.86,164.83,4.96]
[1717393145807,2.2443,164.86,164.84,45.0]
[1717393146097,2.2445,164.85,164.83,12.6393]
[1717393146307,2.2445,164.85,164.82,4.96]
[1717393146503,2.2445,164.85,164.81,13.2268]
[1717393146706,2.2448,164.83,164.81,13.2268]
[1717393146888,2.2448,164.83,164.8,1432.30052728]
[1717393146889,2.2448,164.83,164.8,1399.97002728]
[1717393147090,2.2449,164.82,164.8,1399.97002728]
[1717393147277,2.2449,164.82,164.8,1404.93002728]
[1717393147804,4.4886,164.86,164.8,1417.69902728]
[1717393147980,2.2447,164.84,164.8,1417.69902728]
[1717393148183,2.2447,164.84,164.81,18.1469]
[1717393148713,2.2445,164.85,164.82,18.1469]
[1717393148878,2.2443,164.86,164.84,13.1869]
[1717393149710,2.2444,164.85,164.83,4.96]
[1717393150001,2.2446,164.84,164.83,4.96]
[1717393150299,2.2446,164.84,164.82,4.96]
[1717393150794,2.2446,164.84,164.81,18.0908]
[1717393150976,2.2446,164.84,164.82,45.0]
[1717393151906,2.2446,164.84,164.81,18.0908]
[1717393152205,2.2447,164.83,164.81,13.1308]
[1717393152408,2.2447,164.83,164.81,18.0908]
[1717393152898,2.2446,164.84,164.8,1404.93002728]
[1717393153203,2.2446,164.84,164.81,13.2853]
[1717393153389,2.2446,164.84,164.81,18.2453]
[1717393153591,2.2448,164.82,164.8,1399.97002728]
[1717393155709,2.2447,164.83,164.8,1404.93002728]
[1717393156586,2.2447,164.83,164.8,1417.35332728]
[1717393157393,2.2448,164.82,164.8,1417.35332728]
[1717393158121,2.2448,164.82,164.8,1412.39332728]
[1717393159616,2.2447,164.84,164.8,1417.35332728]
[1717393160112,2.2447,164.83,164.8,1412.39332728]
[1717393160314,2.2447,164.83,164.8,1417.35332728]
[1717393160505,2.2447,164.83,164.8,1412.39332728]
[1717393160710,2.2447,164.83,164.8,1417.35332728]
[1717393161915,2.2449,164.82,164.8,1417.35332728]
[1717393162511,4.4887,164.86,164.8,1412.39332728]
[1717393162694,9.4481,164.88,164.81,18.1207]
[1717393163011,2.2445,164.85,164.81,18.1207]
[1717393163314,4.4881,164.88,164.82,4.96]
[1717393163488,2.2443,164.86,164.84,13.1607]
[1717393163688,2.2444,164.85,164.84,13.1607]
[1717393163889,2.2444,164.85,164.82,17.932]
[1717393165390,2.2444,164.85,164.82,12.972]
[1717393165593,2.2446,164.84,164.82,17.932]
[1717393165790,2.2446,164.84,164.82,12.972]
[1717393166027,2.2447,164.83,164.8,1431.16622728]
[1717393166212,2.2448,164.82,164.81,4.96]
[1717393166417,2.2448,164.82,164.8,1436.12622728]
[1717393166598,2.2448,164.82,164.8,1444.03302728]
[1717393167015,2.2448,164.82,164.8,1412.83682728]
[1717393167198,2.2448,164.82,164.8,1412.29912728]
[1717393167395,2.2448,164.82,164.8,1417.25912728]
[1717393168309,2.2448,164.82,164.8,1412.29912728]
[1717393169316,2.2448,164.82,164.8,1399.97002728]
[1717393169514,4.96,164.85,164.8,1399.97002728]
[1717393169515,2.245,164.81,164.8,1399.97002728]
[1717393170990,7.205,164.81,164.8,1399.97002728]
[1717393172615,2.245,164.81,164.8,1399.97002728]
[1717393173505,2.2447,164.83,164.8,1399.97002728]
[1717393173801,4.96,164.86,164.8,1416.94852728]
[1717393174007,4.4881,164.88,164.81,49.96]
[1717393174227,6.22673303,164.9,164.81,64.9925]
[1717393174397,4.96,164.89,164.83,4.96]
[1717393174799,13.4621,164.91,164.83,4.96]
[1717393175003,2.2442,164.87,164.84,12.5058]
[1717393176310,2.2443,164.86,164.84,12.5058]
[1717393177736,2.2442,164.87,164.84,12.5058]
[1717393179514,2.244,164.88,164.84,12.5058]
[1717393180237,2.244,164.88,164.84,17.4658]
[1717393180415,2.244,164.88,164.85,12.4995]
[1717393180839,2.2442,164.87,164.85,12.4995]
[1717393183141,2.2442,164.87,164.84,0.81927434]
[1717393183322,2.2442,164.87,164.86,12.3264]
[1717393183524,2.2442,164.87,164.86,13.14557494]
[1717393184344,2.2441,164.88,164.86,13.14557494]
[1717393184840,2.2441,164.88,164.87,13.0325]
[1717393189445,2.2441,164.88,164.85,33.0901]
[1717393189446,2.2442,164.87,164.84,31.3615]
[1717393189754,2.2442,164.87,164.85,58.2425]
[1717393190540,2.2443,164.86,164.85,58.2425]
[1717393192240,4.96,164.89,164.85,58.2425]
[1717393192941,4.96,164.89,164.85,13.2425]
[1717393193244,4.96,164.89,164.8,1443.08982728]
[1717393193436,2.2445,164.85,164.81,45.0]
[1717393193639,9.4481,164.88,164.81,49.96]
[1717393193848,2.2445,164.85,164.82,12.9962]
[1717393194758,2.2445,164.85,164.83,12.4882]
[1717393195158,2.2443,164.87,164.83,50.6542]
[1717393195362,2.2443,164.87,164.85,13.1594]
[1717393197985,2.2438,164.9,164.85,13.1594]
[1717393198142,4.4875,164.91,164.86,45.0]
[1717393198348,4.96,164.92,164.87,12.3069]
[1717393198349,2.2438,164.9,164.87,12.3069]
[1717393198549,2.2438,164.9,164.88,12.3069]
[1717393198764,2.2439,164.89,164.88,12.3069]
[1717393199652,2.2438,164.9,164.88,12.3069]
[1717393199858,2.2439,164.89,164.88,12.3069]
[1717393201068,11.217,164.93,164.88,45.0]
[1717393201375,16.177,164.93,164.87,47.5281]
[1717393201549,11.217,164.93,164.89,12.2491]
[1717393201885,2.2437,164.91,164.89,12.2491]
[1717393202373,2.2437,164.91,164.89,31.1517]
[1717393202544,2.2437,164.91,164.9,12.2491]
[1717393205556,11.2143,164.97,164.91,13.3076]
[1717393205761,4.96,164.96,164.91,13.3076]
[1717393206860,4.96,164.96,164.9,58.3076]
[1717393207058,2.2434,164.93,164.91,45.0]
[1717393207275,2.2434,164.93,164.92,13.3076]
[1717393208872,2.2431,164.95,164.92,13.3076]
[1717393209076,2.2432,164.94,164.92,13.3076]
[1717393209593,2.2432,164.94,164.93,13.3076]
[1717393209788,2.2432,164.94,164.93,58.3076]
[1717393211484,2.2432,164.94,164.93,13.3076]
[1717393211994,2.2432,164.94,164.91,12.1367]
[1717393212178,2.2433,164.93,164.92,45.0]
[1717393214582,2.2432,164.94,164.92,45.0]
[1717393217083,2.2431,164.95,164.92,45.0]
[1717393217516,2.2432,164.94,164.92,45.0]
[1717393218002,2.2431,164.95,164.92,45.0]
[1717393219612,2.2432,164.94,164.92,45.0]
[1717393219819,2.2432,164.94,164.91,12.1367]
[1717393222109,4.4856,164.97,164.91,12.1367]
[1717393222314,2.2431,164.95,164.91,12.1367]
[1717393222488,2.2431,164.95,164.9,7.2037]
[1717393222694,2.2431,164.95,164.92,12.1543]
[1717393225029,2.2431,164.95,164.93,45.0]
[1717393225225,2.243,164.96,164.94,12.9722]
[1717393225407,2.2431,164.95,164.94,12.9722]
[1717393225821,2.2431,164.95,164.93,45.0]
[1717393226009,2.2431,164.95,164.92,57.732]
[1717393227941,2.243,164.96,164.93,43.7816]
[1717393228104,2.243,164.96,164.94,12.2633]
[1717393228919,2.243,164.96,164.92,49.96]
[1717393229230,2.2431,164.95,164.92,49.96]
[1717393229440,2.2431,164.95,164.92,62.9765]
[1717393230502,4.4851,164.99,164.92,47.2434]
[1717393230503,2.2428,164.97,164.92,47.2434]
[1717393230703,4.4846,165.01,164.95,12.9843]
[1717393230999,4.96,165.0,164.95,12.9843]
[1717393231220,2.2429,164.97,164.95,12.9843]
[1717393231607,2.2429,164.96,164.95,12.9843]
[1717393233403,2.2428,164.97,164.95,12.9843]
[1717393235624,2.2427,164.98,164.95,12.9843]
[1717393235827,2.2428,164.97,164.95,12.9843]
[1717393237805,2.2429,164.96,164.95,12.9843]
[1717393238613,2.2429,164.96,164.93,12.8378]
[1717393238820,2.2431,164.95,164.93,12.8378]
[1717393239424,2.243,164.96,164.93,12.8378]
[1717393240218,2.2428,164.97,164.93,4.96]
[1717393240423,2.2428,164.97,164.95,12.6566]
[1717393241348,2.2429,164.96,164.95,12.6566]
[1717393243856,2.2429,164.96,164.92,45.0]
[1717393244056,2.2429,164.96,164.92,57.8923]
[1717393244426,6.7266,165.02,164.92,57.8923]
[1717393244427,10.74856715,165.03,164.95,4.96]
[1717393244650,2.2428,164.98,164.94,12.2278]
[1717393244819,2.2428,164.97,164.95,12.2278]
[1717393245027,2.2429,164.96,164.95,12.2278]
[1717393247134,2.2428,164.97,164.95,12.2278]
[1717393248229,2.2429,164.96,164.95,12.2278]
[1717393248960,2.2428,164.97,164.95,12.2278]
[1717393253269,2.2429,164.96,164.95,12.2278]
[1717393253473,2.2429,164.96,164.95,57.2278]
[1717393257046,2.2428,164.97,164.95,57.2278]
[1717393258973,2.2429,164.96,164.95,57.2278]
[1717393259268,2.2429,164.96,164.93,45.818]
[1717393259474,2.2429,164.96,164.94,45.0]
[1717393259668,2.2429,164.96,164.93,50.778]
[1717393259979,2.2429,164.96,164.94,12.5631]
[1717393261763,2.2431,164.95,164.91,37.4539]
[1717393261948,2.2431,164.95,164.91,50.1491]
[1717393262149,4.96,164.97,164.91,12.6952]
[1717393262356,9.4462,164.95,164.88,4.96]
[1717393262571,2.2435,164.92,164.88,12.6952]
[1717393262773,2.2435,164.92,164.89,12.6952]
[1717393263970,4.96,164.92,164.84,11.26541225]
[1717393264155,2.2441,164.88,164.85,12.6072]
[1717393264575,4.96,164.91,164.85,12.6072]
[1717393264576,2.2441,164.87,164.85,12.6072]
[1717393265484,2.2441,164.88,164.85,12.6072]
[1717393265775,2.2439,164.89,164.85,12.6072]
[1717393267278,2.2439,164.89,164.84,36.287]
[1717393267577,11.217,164.93,164.84,36.287]
[1717393267578,2.2438,164.9,164.86,17.9106]
[1717393269177,2.2438,164.9,164.86,12.9506]
[1717393269477,2.2439,164.89,164.86,17.9106]
[1717393269687,2.244,164.88,164.86,12.9506]
[1717393270364,2.244,164.88,164.85,45.0]
[1717393270680,2.244,164.88,164.84,62.6103]
[1717393270983,2.2442,164.87,164.84,62.6103]
[1717393272184,2.244,164.88,164.84,62.6103]
[1717393273165,2.244,164.88,164.85,12.1138]
[1717393274364,2.244,164.88,164.85,17.0738]
[1717393274772,2.244,164.88,164.85,12.1138]
[1717393276062,2.2441,164.87,164.85,12.1138]
[1717393276250,4.96,164.91,164.85,12.1138]
[1717393276464,2.2441,164.88,164.85,12.1138]
[1717393276966,2.2441,164.88,164.86,45.0]
[1717393277568,2.2441,164.88,164.85,58.3073]
[1717393277962,4.4872,164.92,164.85,58.3073]
[1717393277963,4.96,164.9,164.85,13.3073]
[1717393278174,2.2443,164.86,164.82,13.3073]
[1717393278363,2.2441,164.88,164.83,58.3073]
[1717393278678,2.2438,164.9,164.85,4.96]
[1717393278888,2.2439,164.89,164.86,18.0452]
[1717393279382,2.244,164.88,164.86,13.0852]
[1717393280186,2.2439,164.89,164.86,13.0852]
[1717393282968,2.2441,164.88,164.86,13.0852]
[1717393283568,2.2439,164.89,164.86,13.0852]
[1717393284401,2.2439,164.89,164.87,12.5244]
[1717393285076,2.244,164.88,164.87,12.5244]
[1717393285813,4.487,164.92,164.87,12.5244]
[1717393286103,2.2439,164.9,164.88,12.5978]
[1717393286399,4.96,164.93,164.88,12.5978]
[1717393286780,6.2714204,164.98,164.89,62.5578]
[1717393286981,2.2434,164.93,164.91,13.103]
[1717393288088,2.2435,164.92,164.91,13.103]
[1717393288300,2.2435,164.92,164.91,58.103]
[1717393289189,2.2435,164.92,164.91,13.103]
[1717393289574,2.2434,164.93,164.91,13.103]
[1717393290700,4.96,164.93,164.87,30.3344]
[1717393290879,2.2437,164.91,164.88,45.0]
[1717393293013,2.2438,164.9,164.84,2.2444]
[1717393293209,2.2437,164.9,164.85,4.96]
[1717393293507,2.2437,164.9,164.86,13.0774]
[1717393294009,2.2437,164.9,164.88,12.2327]
[1717393300408,2.2437,164.9,164.87,49.96]
[1717393300707,2.2437,164.9,164.89,12.307]
[1717393302190,4.4866,164.94,164.89,12.307]
[1717393302388,11.2149,164.96,164.9,57.65]
[1717393302708,2.2435,164.92,164.9,57.65]
[1717393305311,2.2435,164.92,164.91,13.2748]
[1717393308104,2.2435,164.92,164.91,58.2748]
[1717393309501,2.2434,164.93,164.91,58.2748]
[1717393309705,2.2434,164.93,164.92,45.0]
[1717393311199,4.4853,164.99,164.92,62.2346]
[1717393311407,4.4853,164.99,164.92,45.0]
[1717393311408,2.2431,164.95,164.92,45.0]
[1717393311628,2.2431,164.95,164.93,12.2746]
[1717393312427,2.243,164.96,164.93,12.2746]
[1717393312724,2.243,164.96,164.94,12.3379]
[1717393313301,2.2431,164.95,164.94,12.3379]
[1717393313509,2.243,164.96,164.94,12.3379]
[1717393314309,2.243,164.96,164.92,45.0]
[1717393314516,2.243,164.96,164.92,12.3749]
[1717393314731,2.2431,164.95,164.93,45.0]
[1717393315225,2.243,164.96,164.93,45.0]
[1717393315448,2.243,164.96,164.93,57.1049]
[1717393315624,2.2428,164.97,164.94,12.1049]
[1717393316734,2.2429,164.96,164.94,12.1049]
[1717393318237,4.96,164.99,164.94,12.1049]
[1717393318605,2.2429,164.97,164.94,12.1049]
[1717393319337,2.243,164.96,164.94,12.1049]
[1717393319539,2.243,164.96,164.95,45.0]
[1717393321640,2.2428,164.97,164.94,12.1049]
[1717393322717,2.2429,164.96,164.94,12.1049]
[1717393323014,2.2428,164.98,164.93,2.2432]
[1717393323247,4.484,165.03,164.96,4.96]
[1717393323426,2.2424,165.0,164.97,57.0822]
[1717393323823,2.2423,165.01,164.97,62.0422]
[1717393324042,4.96,165.04,164.97,52.2028]
[1717393324338,2.2422,165.02,164.98,12.0822]
[1717393324542,2.2422,165.02,164.99,45.0]
[1717393327744,2.2422,165.02,165.0,13.1933]
[1717393327923,2.2422,165.02,165.01,45.0]
[1717393328624,4.4833,165.06,164.97,49.1053]
[1717393328625,2.2423,165.01,164.97,49.1053]
[1717393328841,2.2423,165.01,164.98,45.0]
[1717393329046,2.2421,165.02,164.98,45.0]
[1717393329256,2.2421,165.02,164.98,57.9857]
[1717393329456,2.2422,165.01,164.98,57.9857]
[1717393329638,2.2421,165.02,164.98,57.9857]
[1717393332048,2.2422,165.02,164.98,57.9857]
[1717393332560,2.2422,165.02,164.99,12.9018]
[1717393332759,2.2422,165.02,165.0,45.0]
[1717393333739,2.242,165.03,165.0,45.0]
[1717393334359,2.2421,165.02,164.99,12.9018]
[1717393334650,2.242,165.03,165.0,45.0]
[1717393335234,2.2421,165.02,165.0,45.0]
[1717393335864,2.2421,165.02,164.99,12.9018]
[1717393336963,0.8162301,165.07,165.0,12.0903]
[1717393337131,0.8162301,165.07,165.02,12.0903]
[1717393337132,2.2417,165.05,165.02,12.0903]
[1717393337333,2.2419,165.04,165.02,12.0903]
[1717393337531,2.2419,165.04,165.01,57.0903]
[1717393341658,2.2417,165.05,165.02,13.195]
[1717393342366,2.2418,165.04,165.02,13.195]
[1717393343159,2.242,165.03,165.01,45.0]
[1717393343363,2.242,165.03,165.0,45.0]
[1717393343550,2.242,165.03,165.0,58.195]
[1717393344052,2.2419,165.04,165.0,58.195]
[1717393345961,2.242,165.03,165.0,58.195]
[1717393348244,2.2422,165.02,165.0,13.195]
[1717393348553,2.2422,165.02,164.98,18.2538]
[1717393348749,2.2422,165.02,164.99,45.0]
[1717393350654,7.5409301,165.07,164.98,13.2938]
[1717393350655,1.15465979,165.07,164.98,13.2938]
[1717393350951,4.96,165.01,164.95,38.2451]
[1717393351853,4.96,165.01,164.9,4.4873]
[1717393351854,4.96,164.96,164.89,43.8141]
[1717393352172,2.2435,164.92,164.89,13.2225]
[1717393352382,4.96,164.94,164.87,2.2441]
[1717393352383,2.2432,164.94,164.87,2.2441]
[1717393352676,7.203,164.96,164.9,4.96]
[1717393353463,7.203,164.96,164.92,12.0326]
[1717393354148,2.243,164.96,164.93,13.1098]
[1717393355359,2.243,164.96,164.91,45.0]
[1717393355360,2.2431,164.95,164.91,45.0]
[1717393355755,7.2031,164.95,164.91,57.0773]
[1717393356764,2.2432,164.94,164.91,57.0773]
[1717393357888,8.969,165.02,164.89,4.96]
[1717393357889,4.4858,164.97,164.89,12.2542]
[1717393358045,2.2435,164.92,164.89,12.2542]
[1717393358485,2.2436,164.91,164.89,12.2542]
[1717393359152,7.2035,164.92,164.89,12.2542]
[1717393359366,2.2434,164.93,164.89,12.2542]
[1717393359589,7.2034,164.93,164.89,12.2542]
[1717393360462,2.2434,164.93,164.89,12.2542]
[1717393360681,2.2435,164.92,164.89,12.2542]
[1717393360878,4.96,164.92,164.87,32.9454]
[1717393361086,7.2035,164.92,164.87,32.9454]
[1717393361287,7.2035,164.92,164.88,12.7325]
[1717393361783,2.2435,164.92,164.88,12.7325]
[1717393362984,2.2438,164.9,164.88,12.7325]
[1717393363588,7.2036,164.91,164.88,12.7325]
[1717393363989,2.2438,164.9,164.88,12.7325]
[1717393364286,7.2036,164.91,164.88,12.7325]
[1717393364495,2.2436,164.91,164.88,12.7325]
[1717393371180,2.2438,164.9,164.88,12.7325]
[1717393373609,2.2436,164.91,164.88,12.7325]
[1717393373919,2.2438,164.9,164.88,12.7325]
[1717393374416,2.2436,164.91,164.88,12.7325]
[1717393377005,2.2436,164.91,164.87,42.4529]
[1717393377310,4.4865,164.94,164.89,12.2336]
[1717393378309,2.2436,164.92,164.89,12.2336]
[1717393378609,2.2436,164.91,164.89,12.2336]
[1717393381281,2.2436,164.91,164.9,12.0874]
[1717393381698,2.2436,164.91,164.88,45.0]
[1717393381888,2.2437,164.9,164.88,12.0874]
[1717393383006,4.96,164.91,164.84,50.0979]
[1717393383197,2.2443,164.86,164.84,45.1379]
[1717393383404,2.2443,164.86,164.84,13.2868]
[1717393384790,2.2444,164.85,164.82,12.8753]
[1717393384986,7.2043,164.86,164.82,12.8753]
[1717393385188,7.2043,164.86,164.83,12.8753]
[1717393386314,2.2442,164.87,164.83,12.8753]
[1717393386482,2.2442,164.87,164.82,13.0723]
[1717393386689,2.2442,164.87,164.81,32.2495]
[1717393386690,7.2042,164.87,164.84,13.0723]
[1717393388399,2.2441,164.88,164.83,57.648]
[1717393388698,2.2441,164.88,164.84,30.5333]
[1717393388907,2.2441,164.88,164.85,58.3116]
[1717393389097,2.2441,164.88,164.86,13.3116]
[1717393389909,2.2438,164.9,164.88,12.7622]
[1717393390313,2.2439,164.89,164.88,12.7622]
[1717393391820,2.2439,164.89,164.85,45.0]
[1717393392004,2.2439,164.89,164.86,12.3083]
[1717393393028,2.2439,164.89,164.85,75.0226]
[1717393393217,2.2439,164.89,164.87,12.6342]
[1717393393912,2.2438,164.9,164.87,12.6342]
[1717393394118,2.2439,164.89,164.87,12.6342]
[1717393394925,2.2438,164.9,164.87,12.6342]
[1717393395615,2.2438,164.9,164.88,45.0]
[1717393395815,2.2438,164.9,164.89,12.2615]
[1717393396204,4.4867,164.93,164.89,12.2615]
[1717393396205,2.2436,164.91,164.89,12.2615]
[1717393396407,2.2437,164.9,164.89,12.2615]
[1717393397118,11.66298682,164.96,164.89,12.2615]
[1717393397311,2.2436,164.91,164.89,12.2615]
[1717393397820,2.2435,164.92,164.89,12.2615]
[1717393398907,2.2435,164.92,164.89,12.3855]
[1717393399132,2.2433,164.93,164.89,32.2518]
[1717393399332,2.2437,164.91,164.85,12.3855]
[1717393399640,2.2437,164.91,164.87,32.6543]
[1717393400133,2.2437,164.91,164.89,12.2904]
[1717393402336,2.2437,164.9,164.89,12.2904]
[1717393402819,4.96,164.92,164.89,12.2904]
[1717393402820,2.2436,164.92,164.89,57.2904]
[1717393403734,2.2436,164.91,164.87,32.6543]
[1717393403937,2.2436,164.91,164.88,45.0]
[1717393404234,7.2036,164.91,164.88,45.0]
[1717393405233,2.2436,164.91,164.88,45.0]
[1717393405420,2.2436,164.91,164.88,57.4264]
[1717393406437,2.2435,164.92,164.89,13.1769]
[1717393407114,7.2035,164.92,164.89,13.1769]
[1717393407726,2.2435,164.92,164.89,13.1769]
[1717393408415,2.2436,164.91,164.89,13.1769]
[1717393410431,2.2435,164.92,164.89,13.1769]
[1717393412147,2.2436,164.91,164.89,13.1769]
[1717393412528,4.4867,164.93,164.84,13.2454]
[1717393412726,2.244,164.89,164.85,0.17]
[1717393413038,2.244,164.89,164.86,12.7025]
[1717393413240,2.244,164.89,164.87,57.7025]
[1717393413617,7.2038,164.9,164.87,57.7025]
[1717393414033,2.2438,164.9,164.87,57.7025]
[1717393416118,2.2438,164.9,164.87,12.7025]
[1717393416540,2.2436,164.91,164.87,12.7025]
[1717393416812,2.2436,164.91,164.88,12.0039]
[1717393419631,2.2438,164.9,164.88,12.0039]
[1717393419993,6.33373581,164.96,164.88,12.0039]
[1717393420256,2.2436,164.91,164.88,12.0039]
[1717393420451,2.2436,164.91,164.89,45.0]
[1717393421653,2.2436,164.91,164.88,12.635]
[1717393421954,2.2437,164.9,164.88,12.635]
[1717393422156,7.2036,164.91,164.88,12.635]
[1717393422342,2.2438,164.9,164.88,12.635]